Cogmind - Beta 9.6 @@@ ROGUE MODE // 2020.09.09 @ 23:11:00 Player: Carcosa Result: Destroyed by L-31 Rogue with Katana Performance ------------- Evolutions (2) 1000 Regions Visited (4) 800 Robots Destroyed (41) 205 Value Destroyed (1112) 1112 Prototype IDs (1) 20 Alien Tech Used (0) 0 Bonus (0) 0 TOTAL SCORE: 3137 Bonus ------- None Cogmind --------- Core Integrity 0/550 Matter 300/300 Energy 100/100 System Corruption 8% Temperature Cool (0) Movement Core (100) Ox1 Location -8/Materials Parts ------- > --- POWER (1) -------- (None) > --- PROPULSION (3) --- (None) > --- UTILITY (3) ------ Small Storage Unit > --- WEAPON (4) ------- (None) > --- INVENTORY (6) ---- Light Ion Engine Faulty Improved VTOL Module Beam Rifle Light Assault Rifle Peak State ------------ > --- POWER ------------ Improved Ion Engine > --- PROPULSION ------- Gravmag System Gravmag System Gravmag System > --- UTILITY ---------- Small Storage Unit Improved Targeting Computer Reflective Plating > --- WEAPON ----------- Particle Gun Particle Cannon Heavy Assault Rifle Heavy Assault Rifle > --- INVENTORY -------- Light Ion Engine Light Nuclear Core Armored Treads Beam Rifle Light Assault Rifle Great Maul [Rating: 29] Favorites ----------- Power Improved Ion Engine Engine Improved Ion Engine Power Core Light Nuclear Core Propulsion Light Treads Treads Light Treads Leg Aluminum Leg Hover Unit Gravmag System Flight Unit Improved VTOL Module Utility Small Storage Unit Storage Small Storage Unit Processor Improved Targeting Computer Protection Light Armor Plating Weapon Heavy Assault Rifle Energy Gun Beam Rifle Energy Cannon Particle Cannon Ballistic Gun Heavy Assault Rifle Build | -11 -10 -9 -9 -8 ------- Run | Scr Mat Mat Sto Mat Slots Evolved 4 | . . 2 . 2 Power . | . . . . . Propulsion 1 | . . . . 1 Utility 1 | . . 1 . . Weapon 2 | . . 1 . 1 Parts Attached 48 | 6 3 6 18 15 Power 7 | 1 . . 4 2 Engine 6 | 1 . . 4 1 Core 1 | . . . . 1 Reactor . | . . . . . Propulsion 16 | 2 1 2 3 8 Treads 8 | . . 2 3 3 Leg 3 | 2 1 . . . Wheel . | . . . . . Hover 4 | . . . . 4 Flight 1 | . . . . 1 Utility 8 | 1 1 1 4 1 Device . | . . . . . Storage 1 | 1 . . . . Processor 1 | . 1 . . . Hackware . | . . . . . Protection 6 | . . 1 4 1 Artifact . | . . . . . Weapon 17 | 2 1 3 7 4 Energy Gun 6 | . . 1 4 1 Energy Cannon 1 | . . . . 1 Ballistic Gun 10 | 2 1 2 3 2 Ballistic Cannon . | . . . . . Launcher . | . . . . . Special Weapon . | . . . . . Impact Weapon . | . . . . . Slashing Weapon . | . . . . . Piercing Weapon . | . . . . . Special Melee Weapon . | . . . . . Unidentified Prototypes 1 | . . . . 1 Parts Lost 30 | . 1 . 14 15 Power 5 | . . . 3 2 Propulsion 6 | . . . 2 4 Utility 5 | . . . 3 2 Weapon 14 | . 1 . 6 7 Highest Loss Streak 12 | . 1 . 7 12 Average Slot Usage (%) 92 | . 98 96 96 82 Engine 9 | . 14 11 10 5 Treads 16 | . . 3 21 18 Leg 5 | . 28 18 . . Hover 1 | . . . . 6 Storage 10 | . 14 11 11 9 Processor 10 | . 12 11 11 9 Protection 6 | . . 7 9 3 Energy Gun 6 | . . 2 10 5 Energy Cannon 2 | . . . . 7 Ballistic Gun 21 | . 28 30 21 17 Naked Turns . | . . . . . Heaviest Build 28 | 11 11 19 23 28 Greatest Support 60 | 20 20 40 40 60 Greatest Overweight (x) 3 | 3 . . . 2 Average Overweight (x) . | . . . . . Largest Inventory Capacity 6 | 6 6 6 6 6 Average Capacity 5 | 5 6 6 6 6 Most Carried 6 | 4 6 6 6 6 Average Carried 5 | 1 5 5 5 4 Final Capacity 6 | 6 6 6 6 6 Final Carried 6 | 4 6 5 6 4 Class Distribution -------------------- 61% | Scavenger-Gunner 22% | Mutant 12% | Gunner 3% | Scavenger-Mutant Dominant Class ---------------- Mutant | -10/Materials Gunner | -9/Materials Scavenger-Gunner | -9/Storage Scavenger-Gunner | -8/Materials Resources | -11 -10 -9 -9 -8 ----------- Run | Scr Mat Mat Sto Mat Matter Collected 960 | 246 60 40 416 198 Remotely . | . . . . . Salvage Created 1499 | . 193 102 770 434 Parts 103 | . 12 9 60 22 Haulers Intercepted 1 | . . . . 1 Recyclers Shooed 1 | . . . 1 . Parts Field Recycled . | . . . . . Retrieved Matter . | . . . . . Parts Self-Destructed . | . . . . . Prevented . | . . . . . Kills | -11 -10 -9 -9 -8 ------- Run | Scr Mat Mat Sto Mat Combat Hostiles Destroyed 36 | . 7 2 19 8 Guns 35 | . 7 2 19 7 Cannons 1 | . . . . 1 Classes Destroyed 8 | . 2 1 3 2 Worker 2 | . . . 2 . Builder 1 | . . . 1 . Hauler 1 | . . . . 1 Recycler 1 | . . . . 1 Swarmer 13 | . 3 . 7 3 Grunt 12 | . 4 . 4 4 Duelist 1 | . . . 1 . Sentry 10 | . . 2 7 1 Best Kill Streak 8 | . 3 1 8 5 Combat Bots Only 8 | . 3 1 8 4 Max Kills in Single Turn 1 | . 1 1 1 1 Gunslinging . | . . . . . Exploded . | . . . . . Melee . | . . . . . Uniques/NPCs Destroyed . | . . . . . Combat | -11 -10 -9 -9 -8 -------- Run | Scr Mat Mat Sto Mat Damage Taken 3847 | . 458 156 1505 1728 Core 832 | . 50 . 204 578 Absorbed by Shields . | . . . . . Core Remaining (%) 76 | 100 80 . 49 . Volleys Fired 91 | . 25 5 45 16 Largest 4 | . 2 3 3 4 Hottest 179 | . 40 60 102 179 Shots Fired 245 | . 49 15 119 62 Gun 229 | . 49 15 119 46 Cannon 16 | . . . . 16 Launcher . | . . . . . Special . | . . . . . Kinetic 191 | . 49 15 88 39 Thermal 54 | . . . 31 23 Explosive . | . . . . . Electromagnetic . | . . . . . Robot Hit Streak 28 | . 9 19 28 18 Robot Miss Streak 4 | . 4 . 2 2 Penetration Max . | . . . . . Secondary Targets 3 | . 1 . 2 . Max Gunslinging Chain 1 | . 1 . 1 . Shots Hit Robots 180 | . 36 13 93 38 Core Hits 74 | . 12 6 36 20 Critical Hits . | . . . . . Critical Kills . | . . . . . Critical Parts Destroyed . | . . . . . Melee Attacks . | . . . . . Impact . | . . . . . Slashing . | . . . . . Piercing . | . . . . . Sneak Attacks . | . . . . . Combat Hostiles . | . . . . . Follow-up Attacks . | . . . . . Damage Inflicted 2154 | . 278 104 1155 617 Guns 1923 | . 271 104 1132 416 Cannons 143 | . . . . 143 Explosions . | . . . . . Melee . | . . . . . Ramming 88 | . 7 . 23 58 Kinetic 1518 | . 271 104 770 373 Thermal 548 | . . . 362 186 Explosive . | . . . . . Electromagnetic . | . . . . . Impact . | . . . . . Slashing . | . . . . . Piercing . | . . . . . Highest Corruption 9 | . . . 9 8 Average Corruption 6 | . . . 6 5 Corruption Purged . | . . . . . Effects 44 | . . . 41 3 Message Errors 9 | . . . 8 1 Matter Fused 5 | . . . 4 1 Heat Flow Errors 4 | . . . 3 1 Energy Discharges 5 | . . . 5 . Parts Rejected 1 | . . . 1 . Data Loss (minor) 1 | . . . 1 . Data Loss (major) 3 | . . . 3 . Misfires 1 | . . . 1 . Targeting Errors 10 | . . . 10 . Weapon Failures 5 | . . . 5 . Overload Shots . | . . . . . Overflow Damage . | . . . . . Projectiles . | . . . . . Explosions . | . . . . . Melee . | . . . . . Knockbacks . | . . . . . Impact . | . . . . . Kinetic . | . . . . . Secondary . | . . . . . Self-Inflicted Damage 27 | . 3 . . 24 Shots . | . . . . . Rammed 20 | . 1 . 9 10 Targets Rammed 21 | . 1 . 10 10 Kicked . | . . . . . Crushed 1 | . . . 1 . Highest Temperature 350 | . 22 58 251 350 Average Temperature 99 | . 9 25 83 160 Received Heat Transfer 996 | . 156 54 255 531 Effects 5 | . . . 1 4 Energy Bleed 4 | . . . 1 3 Matter Decay 1 | . . . . 1 Siege Activations . | . . . . . Robots Corrupted . | . . . . . Combat Hostiles . | . . . . . Parts Fried . | . . . . . Impact Corruptions . | . . . . . Robots Melted . | . . . . . Combat Hostiles . | . . . . . Parts Melted 1 | . . . 1 . Heat Transferred 1332 | . . . 962 370 Parts Sabotaged . | . . . . . Parts Stolen . | . . . . . Parts Stripped . | . . . . . Power Chain Reactions . | . . . . . Missiles Intercepted . | . . . . . Alert | -11 -10 -9 -9 -8 ------- Run | Scr Mat Mat Sto Mat Peak Influence 349 | . 210 178 349 296 Average Influence 163 | . 102 137 193 164 Maximum Alert Level 1 | . 1 . 1 1 Low Security (%) 70 | 100 86 100 64 63 Level 1 29 | . 13 . 35 36 Level 2 . | . . . . . Level 3 . | . . . . . Level 4 . | . . . . . Level 5 . | . . . . . High Security . | . . . . . Max Security . | . . . . . Squads Dispatched 9 | . 1 1 1 6 Investigation . | . . . . . Extermination . | . . . . . Reinforcement 6 | . 1 1 1 3 Assault . | . . . . . Garrison 3 | . . . . 3 Intercept . | . . . . . Construction Impeded . | . . . . . Haulers Reinforced . | . . . . . Stealth | -11 -10 -9 -9 -8 --------- Run | Scr Mat Mat Sto Mat Distress Signals 8 | . 2 . 2 4 Communications Jammed . | . . . . . Distress Signals . | . . . . . Times Spotted 94 | . 18 3 31 42 Peak Tracking Total 19 | . 6 2 8 19 Tactical Retreats 6 | . 1 . 2 3 Traps | -11 -10 -9 -9 -8 ------- Run | Scr Mat Mat Sto Mat Traps Triggered 10 | . . . 9 1 Indirectly . | . . . . . Trap Hack Attempts . | . . . . . Triggered . | . . . . . Disarmed . | . . . . . Reprogrammed . | . . . . . Reused . | . . . . . Traps Extracted . | . . . . . Installed . | . . . . . Triggered . | . . . . . Machines | -11 -10 -9 -9 -8 ---------- Run | Scr Mat Mat Sto Mat Machines Disabled 1 | . . . . 1 Max in Single Turn 1 | . . . . 1 Machines Sabotaged . | . . . . . Garrisons Compromised . | . . . . . Overloaded Fab Kills . | . . . . . Fab Network Shutdowns . | . . . . . Hacking | -11 -10 -9 -9 -8 --------- Run | Scr Mat Mat Sto Mat Machines Accessed . | . . . . . Terminals . | . . . . . Fabricators . | . . . . . Repair Stations . | . . . . . Recycling Units . | . . . . . Scanalyzers . | . . . . . Garrison Access . | . . . . . Total Hacks . | . . . . . Successful . | . . . . . Failed . | . . . . . Catastrophic . | . . . . . Database Lockouts . | . . . . . Manual . | . . . . . Terminals . | . . . . . Fabricators . | . . . . . Repair Stations . | . . . . . Recycling Units . | . . . . . Scanalyzers . | . . . . . Garrison Access . | . . . . . Terminal Hacks . | . . . . . Fabricator Hacks . | . . . . . Repair Station Hacks . | . . . . . Recycling Unit Hacks . | . . . . . Scanalyzer . | . . . . . Garrison Access Hacks . | . . . . . Unauthorized Hacks . | . . . . . Terminals . | . . . . . Fabricators . | . . . . . Repair Stations . | . . . . . Recycling Units . | . . . . . Scanalyzers . | . . . . . Garrison Access . | . . . . . Data Cores Recovered . | . . . . . Used . | . . . . . Hacking Detections . | . . . . . Full Trace Events . | . . . . . Feedback Events . | . . . . . Feedback Blocked . | . . . . . Robot Schematics Acquired . | . . . . . Robots Built . | . . . . . Matter . | . . . . . Time . | . . . . . Total Robot Build Rating . | . . . . . Part Schematics Acquired . | . . . . . Parts Built . | . . . . . Matter . | . . . . . Time . | . . . . . Total Part Build Rating . | . . . . . Parts Repaired . | . . . . . Time . | . . . . . Parts Recycled . | . . . . . Recycled Matter . | . . . . . Retrieved Matter . | . . . . . Retrieved Components . | . . . . . Parts Scanalyzed . | . . . . . Part Schematics Acquired . | . . . . . Parts Damaged . | . . . . . Bothacking | -11 -10 -9 -9 -8 ------------ Run | Scr Mat Mat Sto Mat Used RIF Installer . | . . . . . Robots Hacked . | . . . . . Non-combat . | . . . . . Combat . | . . . . . Robot Hacks Applied . | . . . . . Relay Couplers Released . | . . . . . Robots Rewired . | . . . . . Allies Hacked . | . . . . . Hacks Repelled . | . . . . . Allies | -11 -10 -9 -9 -8 -------- Run | Scr Mat Mat Sto Mat Total Allies . | . . . . . Largest Group . | . . . . . Highest-Rated Group . | . . . . . Highest-Rated Ally . | . . . . . Total Orders . | . . . . . Ally Attacks . | . . . . . Total Damage . | . . . . . Kills . | . . . . . Allies Corrupted . | . . . . . Allies Melted . | . . . . . Intel | -11 -10 -9 -9 -8 ------- Run | Scr Mat Mat Sto Mat Robot Analysis Total . | . . . . . Derelict Logs Recovered . | . . . . . Drone Launches . | . . . . . Drone Recoveries . | . . . . . Exploration | -11 -10 -9 -9 -8 ------------- Run | Scr Mat Mat Sto Mat Turns Passed 1814 | 58 248 117 890 501 Spaces Moved 978 | 38 118 57 390 375 Core 40 | 15 . . . 25 Treads 554 | . . 11 390 153 Legs 187 | 23 118 46 . . Wheels . | . . . . . Hover 197 | . . . . 197 Flight . | . . . . . Fastest Speed 50 | 50 120 120 160 52 Average Speed 129 | 121 120 127 160 101 Slowest Speed 200 | 200 120 160 160 180 Overloaded Moves . | . . . . . Propulsion Burnouts . | . . . . . Robots Hopped . | . . . . . Cave-ins Triggered . | . . . . . Exploration Rate (%) 31 | 3 22 10 64 57 Regions Visited 4 Branch Regions 1 Pre-discovered Areas . | . . . . . Known Exits Taken . | . . . . . Unknown Exits Taken 4 | 1 1 1 1 . Scrap Searched . | . . . . . Spaces Dug . | . . . . . Terrain Destroyed . | . . . . . Melee . | . . . . . Projectile . | . . . . . AOE . | . . . . . Actions | -11 -10 -9 -9 -8 --------- Run | Scr Mat Mat Sto Mat Total 1337 | 47 184 94 555 457 Wait 159 | . 34 20 80 25 Move 974 | 37 117 56 389 375 Hop . | . . . . . Pick Up 28 | 4 3 2 12 7 Fast Attach 27 | 6 2 4 8 7 Attach 21 | . 1 2 10 8 Detach 2 | . . . . 2 Swap . | . . . . . Drop 14 | . 1 5 1 7 Fire 91 | . 25 5 45 16 Melee . | . . . . . Ram 9 | . . . . 9 Kick 1 | . 1 . . . Crush 11 | . . . 10 1 Escape Stasis . | . . . . . Rewire . | . . . . . Trap . | . . . . . Miscellaneous . | . . . . . Route ------- -11/Scrapyard -10/Materials -9/Materials -9/Storage -8/Materials History --------- Turn | Location | Event 19 | -11/Scrapyard | Discovered new exit (range 15) 59 | -11/Scrapyard | Entered Materials 240 | -10/Materials | Discovered new exit (range 16) 307 | -10/Materials | Entered another Materials area 307 | -9/Materials | Evolved 2 slots: Utility x1, Weapon x1 369 | -9/Materials | Discovered new exit (range 15) 424 | -9/Materials | Entered Storage 801 | -9/Storage | Lost 7 parts (1p2n1u3w) 823 | -9/Storage | Destroyed 8 combat bots 1262 | -9/Storage | Core integrity fell below 50% 1302 | -9/Storage | Discovered new exit (range 7) 1314 | -9/Storage | Entered Materials 1314 | -8/Materials | Evolved 2 slots: Propulsion x1, Weapon x1 1402 | -8/Materials | Garrison activated, responded to threat 1471 | -8/Materials | Build established: Scavenger-Gunner 1791 | -8/Materials | Core integrity fell below 50% 1804 | -8/Materials | Core integrity fell below 20% 1815 | -8/Materials | Destroyed by L-31 Rogue with Katana Last Messages --------------- Hvy. Assault Rifle destroyed. Gravmag System destroyed. Slammed into G-47 Trooper. Reflective Plating destroyed. Hvy. Assault Rifle destroyed. Gravmag System destroyed. B8G VIVE21T<,TSEW,EV%Z%,WLNPZEHC5B Slammed into G-50 Soldier. Gravmag System destroyed. Lgt. Nuclear Core destroyed. Drone sends a signal. Slammed into Y-45 Defender. W-25 Informer sends out distress signal. Slammed into G-47 Trooper. Destabilizing: Core damaged (-16). Penetrated by Slug. W-25 Informer sends out distress signal. System corrupted: Matter fused (-9). Slammed into K-01 Serf. Imp. Targeting Computer destroyed. Map ----- +----------------------------------------------------+ | # ""#??????????????# #?####### | | # Y"###########????+ #???????#### | | ###+#### """ ""# ?????? ##???????????? | | #?## """ # !??????? ?????????????? | | #??# """ # """ ??????????????????????? | | #??# ^ # """""??????????????????????? | | #??# ^ + """""??????????????????????? | | ! #??# %! # """""??????????????????????? | | !#??# ^ | # """ ??????????????????????? | | #??# | # ?????????????????????? | | ######### | #########?????????????????????? | | + """"=# #?????????????????????????????? | | # " "= #%% #?????????????????????????????? | | # " =%!+ * ###+#####????????????????????????????? | | #*% %=#= ## #????????????????????????????? | | #=! !=*# ## "" #????????????????????????????? | | # !!# ## "G #????????????????####????????? | | ######## ## "" #??????#??? ??? ????????? | | ######## ## #?????## / ! ?# ??####### | | # "T" # ## #?????# #? | | # # #########??????# """"" #? ????##### | | + # #??????????????? """"" #? ????????? | | # # #???????????????? """"" #?# #????????? | | ######## #????????????????? ???# #????###?? | | ####### #??#######+########/###### ######T### | | w @ sYgYk YYg ]]%]]= | | u g k l s ##### #### | | / g #???# #??? | | ####### ###+######################%% #??? | | #????????+##??????????????????#[![ !##/##### #??? | | #???????????????????????#######[![ # ## #??? | | #???????????????????????# /[[ / ## #??? | | ##???????????????????????# # %!# ## #??? | | ?????????????????????????# ###/### ! ## #??? | | ?????????????????????????#""" # # ## #??? | | ?????????????????????????#""" # ! ######## #??? | | ?????????????????????????#""" %+ #??# #??? | | ?????????????????????????#""" # ### #??# #??? | | ?????????????????????????#""" %# ### ##?# #??? | | ?????????????????????????# ###+#### ]### #??? | | ?????????????????????????# #! ## #??? | | ?????????????????????????# # """##= #####??? | | ?????????????????????????# # """######??????? | | ?????????????????????????####### """#???????????? | | ???????????????????????????????# #???????????? | | ???????????????????????????????#! /#???????????? | | ????????????????????????????????######???????????? | | | | | | | +----------------------------------------------------+ Best States ------------- Heat Dissipation 31 Energy Generation 14 Energy Capacity 265 Matter Stores 300 Matter Capacity 300 Sight Range 16 Terrain Scan Density 10 Armor Coverage 150 Resistance: TH 10 Evasion (%) 54 Targeting Accuracy 6 Recoil Reduction 3 Item Schematics ----------------- None Robot Schematics ------------------ None Fabricated ------------ Nothing Alien Tech Used ----------------- None Achievements -------------- None Challenges ------------ None Game ------ Seed LinearMatterKit Manual? 0 Play Time 00:28:45 Cumulative 47.4 hours Start 2020.09.09 @ 22:33:26 End 2020.09.09 @ 23:11:00 Sessions 1 Manual Loads 0 Difficulty Rogue Special Mode None Game No. 153 Rogue 153 Adventurer 0 Explorer 0 Win Type - Total 0 Types 0/0/0/0/0/0/0 Lore% 13 Gallery% 27 Achievement% 13 Wizard Run 0 Options --------- ASCII 1 Keyboard 1 Movement Numpad Keybinds 0 Fullscreen 1 Font 12/Terminus Map View 83x54 Tactical HUD 0 Map Filters NONE Filters NONE Steam 1 RUN: 9f884f57-3d93-4673-ba7b-9ad4a2c934e1